fUSD/lending_fUSD_20260513
["ID","MTS","AMOUNT","RATE_DAILY","PERIOD"]
[422153148,1778625048000,-155.0,0.00041306,2]
[422153146,1778625048000,-155.0,0.00041306,2]
[422153147,1778625048000,-155.0,0.00041306,2]
[422153155,1778625048000,-1798.80895522,0.00041306,30]
[422153152,1778625048000,-1613.0535,0.00041306,30]
[422153150,1778625048000,-1500.0,0.00041306,30]
[422153151,1778625048000,-1555.5,0.00041306,30]
[422153154,1778625048000,-1734.62772924,0.00041306,30]
[422153153,1778625048000,-1672.7364795,0.00041306,30]
[422153124,1778625048000,-435.36,0.00041306,30]
[422153125,1778625048000,-620.1257127,0.00041306,90]
[422153140,1778625048000,-500.0,0.00041306,3]
[422153129,1778625048000,-571.93,0.00041306,30]
[422153123,1778625048000,-571.93,0.00041306,30]
[422153100,1778625048000,-479.28,0.00041306,30]
[422153097,1778625048000,-386.2182271,0.00041306,4]
[422153101,1778625048000,-183.75,0.00041306,30]
[422153103,1778625048000,-569.68,0.00041306,30]
[422153095,1778625048000,-500.0,0.00041306,4]
[422153099,1778625048000,-638.97,0.00041306,30]
[422153104,1778625048000,-479.3,0.00041306,30]
[422153105,1778625048000,-640.08,0.00041306,30]
[422153115,1778625048000,-393.72,0.00041306,30]
[422153107,1778625048000,-393.72,0.00041306,30]
[422153118,1778625048000,-569.68,0.00041306,30]
[422153116,1778625048000,-569.68,0.00041306,30]
[422153102,1778625048000,-393.76,0.00041306,30]
[422153117,1778625048000,-571.93,0.00041306,30]
[422153120,1778625048000,-640.08,0.00041306,30]
[422153112,1778625048000,-571.93,0.00041306,30]
[422153131,1778625048000,-569.68,0.00041306,30]
[422153121,1778625048000,-393.72,0.00041306,30]
[422153113,1778625048000,-640.08,0.00041306,30]
[422153110,1778625048000,-530.94,0.00041306,30]
[422153132,1778625048000,-569.68,0.00041306,30]
[422153114,1778625048000,-640.08,0.00041306,30]
[422153111,1778625048000,-569.68,0.00041306,30]
[422153119,1778625048000,-571.93,0.00041306,30]
[422153109,1778625048000,-391.57,0.00041306,30]
[422153098,1778625048000,-571.93,0.00041306,30]
[422153108,1778625048000,-569.68,0.00041306,30]
[422153201,1778625049000,-1800.0,0.0004145,120]
[422153197,1778625049000,-6590.67009777,0.00041386,30]
[422153195,1778625049000,-500.0,0.00041385,120]
[422153194,1778625049000,-500.0,0.00041385,120]
[422153190,1778625049000,-500.0,0.00041385,120]
[422153192,1778625049000,-500.0,0.00041385,7]
[422153191,1778625049000,-500.0,0.00041385,120]
[422153189,1778625049000,-500.0,0.00041385,120]
[422153187,1778625049000,-500.0,0.00041385,120]
[422153196,1778625049000,-10122.87359724,0.00041386,30]
[422153193,1778625049000,-500.0,0.00041385,120]
[422153200,1778625049000,-1311.97,0.00041438,2]
[422153214,1778625049000,-503.33958832,0.0004147,120]
[422153198,1778625049000,-2000.0,0.000414,120]
[422153202,1778625049000,-1000.0,0.00041452,120]
[422153204,1778625049000,-4620.38,0.0004146,2]
[422153203,1778625049000,-443.18907669,0.00041458,3]
[422153205,1778625049000,-1500.0,0.00041461,120]
[422153211,1778625049000,-241.28425104,0.0004147,120]
[422153210,1778625049000,-509.43717845,0.0004147,30]
[422153206,1778625049000,-1500.0,0.00041461,120]
[422153209,1778625049000,-1207.98112708,0.0004147,30]
[422153208,1778625049000,-151.0,0.0004147,30]
[422153207,1778625049000,-360.20348316,0.00041461,120]
[422153213,1778625049000,-500.0,0.0004147,120]
[422153186,1778625049000,-500.0,0.00041385,120]
[422153199,1778625049000,-500.0,0.000414,120]
[422153182,1778625049000,-75769.9,0.00041379,8]
[422153156,1778625049000,-1865.36488657,0.00041306,30]
[422153188,1778625049000,-500.0,0.00041385,2]
[422153212,1778625049000,-500.0,0.0004147,120]
[422153157,1778625049000,-1934.38338737,0.00041306,30]
[422153158,1778625049000,-2005.9555727,0.00041306,30]
[422153161,1778625049000,-151.10549082,0.00041306,14]
[422153169,1778625049000,-151.0,0.00041311,120]
[422153167,1778625049000,-206.46488819,0.00041306,120]
[422153159,1778625049000,-2080.17592889,0.00041306,30]
[422153168,1778625049000,-151.0,0.00041311,120]
[422153170,1778625049000,-232.063881,0.00041311,120]
[422153160,1778625049000,-154.0,0.00041306,120]
[422153166,1778625049000,-1089.40080902,0.00041306,120]
[422153163,1778625049000,-400.0,0.00041306,120]
[422153164,1778625049000,-158.0,0.00041306,120]
[422153184,1778625049000,-500.0,0.00041385,30]
[422153162,1778625049000,-313.0,0.00041306,120]
[422153172,1778625049000,-151.0,0.00041311,120]
[422153171,1778625049000,-151.0,0.00041311,120]
[422153175,1778625049000,-245.0,0.00041316,60]
[422153173,1778625049000,-151.306609,0.00041311,120]
[422153174,1778625049000,-258.495888,0.00041311,120]
[422153177,1778625049000,-1598.0,0.00041359,11]
[422153176,1778625049000,-439.26595005,0.00041316,60]
[422153179,1778625049000,-187.0,0.00041359,11]
[422153178,1778625049000,-163.0,0.00041359,11]
[422153180,1778625049000,-443.18907673,0.0004137,3]
[422153181,1778625049000,-271.94,0.00041379,8]
[422153183,1778625049000,-254.52,0.00041379,8]
[422153185,1778625049000,-500.0,0.00041385,120]
[422153165,1778625049000,-165.0,0.00041306,120]
[422153215,1778625049000,-500.0,0.0004147,2]
[422153246,1778625049000,-150.0,0.00041472,6]
[422153219,1778625049000,-200.0,0.0004147,7]
[422153253,1778625049000,-7300.0,0.00041484,120]
[422153254,1778625049000,-246.23,0.00041501,2]
[422153251,1778625049000,-155.01,0.00041479,120]
[422153249,1778625049000,-155.01,0.00041479,120]
[422153256,1778625049000,-420.23739704,0.00041502,120]
[422153266,1778625049000,-2092.7,0.0004163,2]
[422153257,1778625049000,-152.0,0.00041502,30]
[422153255,1778625049000,-600.3391386,0.00041502,120]
[422153258,1778625049000,-1815.17,0.00041507,120]
[422153267,1778625049000,-443.18907669,0.00041635,4]
[422153261,1778625049000,-216.0,0.0004154,2]
[422153264,1778625049000,-62000.0,0.00041589,120]
[422153265,1778625049000,-420.23739702,0.00041626,120]
[422153262,1778625049000,-443.18907669,0.00041547,4]
[422153263,1778625049000,-5259.42,0.0004158,2]
[422153260,1778625049000,-150.0,0.0004154,2]
[422153259,1778625049000,-279.0,0.0004154,2]
[422153268,1778625049000,-779.23,0.00041644,120]
[422153272,1778625049000,-500.0,0.00041699,7]
[422153270,1778625049000,-3763.68,0.00041695,120]
[422153271,1778625049000,-500.0,0.00041699,7]
[422153277,1778625049000,-50000.0,0.000417,120]
[422153274,1778625049000,-50000.0,0.000417,120]
[422153276,1778625049000,-50000.0,0.000417,120]
[422153275,1778625049000,-50000.0,0.000417,120]
[422153273,1778625049000,-999.88,0.000417,2]
[422153218,1778625049000,-251.75578303,0.0004147,2]
[422153250,1778625049000,-155.01,0.00041479,120]
[422153248,1778625049000,-150.0,0.00041472,2]
[422153269,1778625049000,-25601.09798739,0.00041644,120]
[422153243,1778625049000,-562.86777387,0.00041471,60]
[422153220,1778625049000,-500.0,0.0004147,120]
[422153252,1778625049000,-155.04,0.00041479,120]
[422153217,1778625049000,-500.0,0.0004147,2]
[422153224,1778625049000,-500.0,0.0004147,120]
[422153222,1778625049000,-500.0,0.0004147,120]
[422153227,1778625049000,-500.0,0.0004147,7]
[422153225,1778625049000,-500.0,0.0004147,120]
[422153221,1778625049000,-503.97223123,0.0004147,120]
[422153223,1778625049000,-608.0,0.0004147,120]
[422153228,1778625049000,-500.0,0.0004147,7]
[422153216,1778625049000,-500.0,0.0004147,2]
[422153230,1778625049000,-500.0,0.0004147,7]
[422153240,1778625049000,-152.0,0.0004147,120]
[422153234,1778625049000,-500.0,0.0004147,120]
[422153226,1778625049000,-500.0,0.0004147,7]
[422153233,1778625049000,-500.0,0.0004147,120]
[422153247,1778625049000,-1500.0,0.00041472,120]
[422153232,1778625049000,-520.46694454,0.0004147,120]
[422153244,1778625049000,-882.48563277,0.00041472,120]
[422153238,1778625049000,-505.18613746,0.0004147,120]
[422153237,1778625049000,-500.0,0.0004147,120]
[422153235,1778625049000,-500.0,0.0004147,120]
[422153245,1778625049000,-240.77,0.00041472,2]
[422153236,1778625049000,-567.06631625,0.0004147,120]
[422153229,1778625049000,-500.0,0.0004147,7]
[422153241,1778625049000,-1134.33657675,0.0004147,120]
[422153239,1778625049000,-200.0,0.0004147,7]
[422153231,1778625049000,-500.0,0.0004147,120]
[422153242,1778625049000,-495.13694843,0.0004147,120]
[422153304,1778625050000,-262.038696,0.000417,120]
[422153302,1778625050000,-262.038696,0.000417,120]
[422153311,1778625050000,-500.0,0.000417,60]
[422153301,1778625050000,-151.0,0.000417,120]
[422153303,1778625050000,-262.038696,0.000417,120]
[422153305,1778625050000,-262.038696,0.000417,120]
[422153306,1778625050000,-151.0,0.000417,120]
[422153307,1778625050000,-151.0,0.000417,120]
[422153308,1778625050000,-151.0,0.000417,120]
[422153314,1778625050000,-500.0,0.000417,60]
[422153309,1778625050000,-151.0,0.000417,120]
[422153312,1778625050000,-500.0,0.000417,60]
[422153313,1778625050000,-500.0,0.000417,60]
[422153315,1778625050000,-500.0,0.000417,60]
[422153317,1778625050000,-500.0,0.000417,60]
[422153320,1778625050000,-500.0,0.000417,60]
[422153300,1778625050000,-214.401417,0.000417,7]
[422153321,1778625050000,-500.0,0.000417,60]
[422153310,1778625050000,-500.0,0.000417,60]
[422153298,1778625050000,-151.0,0.000417,7]
[422153290,1778625050000,-1105.864447,0.000417,120]
[422153295,1778625050000,-151.0,0.000417,120]
[422153319,1778625050000,-500.0,0.000417,60]
[422153278,1778625050000,-50000.0,0.000417,120]
[422153279,1778625050000,-50000.0,0.000417,120]
[422153280,1778625050000,-50000.0,0.000417,120]
[422153282,1778625050000,-200.0,0.000417,7]
[422153283,1778625050000,-1557.527589,0.000417,20]
[422153281,1778625050000,-49955.99999997,0.000417,120]
[422153284,1778625050000,-1557.527589,0.000417,20]
[422153285,1778625050000,-1557.527589,0.000417,20]
[422153291,1778625050000,-215.526239,0.000417,120]
[422153286,1778625050000,-1557.527589,0.000417,20]
[422153287,1778625050000,-1105.864447,0.000417,120]
[422153288,1778625050000,-1105.864447,0.000417,120]
[422153289,1778625050000,-1105.864447,0.000417,120]
[422153292,1778625050000,-499.931776,0.000417,120]
[422153294,1778625050000,-499.931776,0.000417,120]
[422153293,1778625050000,-499.931776,0.000417,120]
[422153297,1778625050000,-151.0,0.000417,7]
[422153296,1778625050000,-499.931776,0.000417,120]
[422153299,1778625050000,-151.0,0.000417,120]
[422153316,1778625050000,-500.0,0.000417,60]
[422153335,1778625050000,-500.0,0.000417,60]
[422153318,1778625050000,-500.0,0.000417,60]
[422153347,1778625050000,-500.0,0.000417,60]
[422153348,1778625050000,-500.0,0.000417,60]
[422153346,1778625050000,-500.0,0.000417,60]
[422153350,1778625050000,-500.0,0.000417,60]
[422153351,1778625050000,-500.0,0.000417,60]
[422153353,1778625050000,-500.0,0.000417,60]
[422153356,1778625050000,-500.0,0.000417,60]
[422153357,1778625050000,-500.0,0.000417,60]
[422153354,1778625050000,-500.0,0.000417,60]
[422153355,1778625050000,-500.0,0.000417,60]
[422153352,1778625050000,-500.0,0.000417,60]
[422153358,1778625050000,-500.0,0.000417,60]
[422153360,1778625050000,-500.0,0.000417,60]
[422153359,1778625050000,-500.0,0.000417,60]
[422153361,1778625050000,-500.0,0.000417,60]
[422153362,1778625050000,-500.0,0.000417,60]
[422153322,1778625050000,-500.0,0.000417,60]
[422153364,1778625050000,-500.0,0.000417,60]
[422153365,1778625050000,-500.0,0.000417,60]
[422153349,1778625050000,-500.0,0.000417,60]
[422153343,1778625050000,-500.0,0.000417,60]
[422153363,1778625050000,-226.128836,0.000417,120]
[422153345,1778625050000,-500.0,0.000417,60]
[422153342,1778625050000,-500.0,0.000417,60]
[422153323,1778625050000,-500.0,0.000417,60]
[422153326,1778625050000,-500.0,0.000417,60]
[422153327,1778625050000,-500.0,0.000417,60]
[422153329,1778625050000,-500.0,0.000417,60]
[422153330,1778625050000,-151.0,0.000417,120]
[422153325,1778625050000,-500.0,0.000417,60]
[422153331,1778625050000,-500.0,0.000417,60]
[422153328,1778625050000,-500.0,0.000417,60]
[422153324,1778625050000,-500.0,0.000417,60]
[422153340,1778625050000,-500.0,0.000417,60]
[422153332,1778625050000,-500.0,0.000417,60]
[422153334,1778625050000,-500.0,0.000417,60]
[422153336,1778625050000,-500.0,0.000417,60]
[422153341,1778625050000,-500.0,0.000417,60]
[422153333,1778625050000,-500.0,0.000417,60]
[422153339,1778625050000,-500.0,0.000417,60]
[422153337,1778625050000,-500.0,0.000417,60]
[422153338,1778625050000,-500.0,0.000417,60]
[422153344,1778625050000,-500.0,0.000417,60]
[422153383,1778625051000,-500.0,0.000417,60]
[422153392,1778625051000,-500.0,0.000417,60]
[422153385,1778625051000,-151.0,0.000417,30]
[422153386,1778625051000,-822.07522,0.000417,120]
[422153388,1778625051000,-151.0,0.000417,120]
[422153391,1778625051000,-500.0,0.000417,60]
[422153389,1778625051000,-822.07522,0.000417,120]
[422153395,1778625051000,-500.0,0.000417,60]
[422153397,1778625051000,-500.0,0.000417,60]
[422153400,1778625051000,-500.0,0.000417,60]
[422153396,1778625051000,-500.0,0.000417,60]
[422153399,1778625051000,-500.0,0.000417,60]
[422153398,1778625051000,-500.0,0.000417,60]
[422153404,1778625051000,-500.0,0.000417,60]
[422153387,1778625051000,-822.07522,0.000417,120]
[422153394,1778625051000,-500.0,0.000417,60]
[422153384,1778625051000,-500.0,0.000417,60]
[422153380,1778625051000,-500.0,0.000417,60]
[422153381,1778625051000,-226.128836,0.000417,120]
[422153367,1778625051000,-500.0,0.000417,60]
[422153402,1778625051000,-500.0,0.000417,60]
[422153368,1778625051000,-500.0,0.000417,60]
[422153366,1778625051000,-500.0,0.000417,60]
[422153369,1778625051000,-226.128836,0.000417,120]
[422153372,1778625051000,-500.0,0.000417,60]
[422153375,1778625051000,-226.128836,0.000417,120]
[422153390,1778625051000,-822.07522,0.000417,120]
[422153374,1778625051000,-500.0,0.000417,60]
[422153377,1778625051000,-500.0,0.000417,60]
[422153378,1778625051000,-500.0,0.000417,60]
[422153373,1778625051000,-500.0,0.000417,60]
[422153371,1778625051000,-500.0,0.000417,60]
[422153376,1778625051000,-500.0,0.000417,60]
[422153379,1778625051000,-500.0,0.000417,60]
[422153382,1778625051000,-500.0,0.000417,60]
[422153370,1778625051000,-500.0,0.000417,60]
[422153393,1778625051000,-500.0,0.000417,60]
[422153440,1778625051000,-25232.72980432,0.0004179,120]
[422153405,1778625051000,-500.0,0.000417,60]
[422153427,1778625051000,-233.38989,0.00020548,2]
[422153426,1778625051000,-176.19,0.00018047,2]
[422153435,1778625051000,-391.59326113,0.00041723,4]
[422153428,1778625051000,-9453.58,0.00027397,10]
[422153429,1778625051000,-165.0,0.00032653,30]
[422153432,1778625051000,-4087.48881199,0.00036062,2]
[422153433,1778625051000,-576.93890108,0.00037181,2]
[422153425,1778625051000,-4728.07011,0.00020548,2]
[422153430,1778625051000,-165.0,0.00033653,30]
[422153434,1778625051000,-507.0,0.00038311,2]
[422153437,1778625051000,-13891.97847348,0.00041747,2]
[422153436,1778625051000,-281.227984,0.00041736,21]
[422153438,1778625051000,-420.23739702,0.00041751,120]
[422153439,1778625051000,-500.0,0.00041789,7]
[422153441,1778625051000,-608.0,0.00022966,2]
[422153401,1778625051000,-500.0,0.000417,60]
[422153431,1778625051000,-165.0,0.00034653,30]
[422153423,1778625051000,-352.38,0.00013882,2]
[422153424,1778625051000,-4961.46,0.00020548,2]
[422153414,1778625051000,-165.0,0.00031653,30]
[422153407,1778625051000,-500.0,0.000417,60]
[422153406,1778625051000,-500.0,0.000417,60]
[422153408,1778625051000,-124.09608739,0.000417,60]
[422153409,1778625051000,-375.90391261,0.000417,60]
[422153410,1778625051000,-500.0,0.000417,60]
[422153413,1778625051000,-489.97387276,0.000417,60]
[422153422,1778625051000,-51.59581556,0.00041723,4]
[422153403,1778625051000,-500.0,0.000417,60]
[422153412,1778625051000,-375.71612724,0.000417,60]
[422153411,1778625051000,-124.28387276,0.000417,60]
[422153416,1778625051000,-500.0,0.000417,60]
[422153417,1778625051000,-122.31601206,0.000417,60]
[422153418,1778625051000,-377.68398794,0.000417,60]
[422153419,1778625051000,-500.0,0.000417,60]
[422153420,1778625051000,-296.382654,0.000417,60]
[422153421,1778625051000,-176.25,0.00041717,120]
[422153415,1778625051000,-10.02612724,0.000417,60]
[422153444,1778625052000,-17.0,0.00022966,2]
[422153448,1778625052000,-165.0,0.00035653,30]
[422153442,1778625052000,-4015.11574877,0.00021718,2]
[422153447,1778625052000,-2559.98282448,0.00031545,2]
[422153443,1778625052000,-984.88425123,0.00021718,2]
[422153445,1778625052000,-625.0,0.00025966,2]
[422153446,1778625052000,-501.068,0.00028966,2]
[422153449,1778625052000,-165.0,0.00036653,30]
[422153451,1778625052000,-1947.06482429,0.00038931,2]
[422153450,1778625052000,-300.0,0.00037181,2]
[422153452,1778625063000,-152.0,0.00013721,2]
[422153453,1778625447000,5000.0,0.00041284,120]
[422153455,1778625581000,500.0,0.00041284,120]
[422153454,1778625581000,500.0,0.00041284,120]
[422153459,1778625582000,500.0,0.00041284,120]
[422153458,1778625582000,500.0,0.00041284,120]
[422153457,1778625582000,500.0,0.00041284,120]
[422153456,1778625582000,500.0,0.00041284,120]
[422153461,1778625583000,356.30141407,0.00041284,120]
[422153460,1778625583000,500.0,0.00041284,120]
[422153463,1778625600000,159.77,0.00010271,2]
[422153462,1778625600000,159.77,9.031e-05,2]
[422153469,1778626134000,500.0,0.00041285,120]
[422153468,1778626134000,500.0,0.00041285,120]
[422153467,1778626134000,500.0,0.00041285,120]
[422153466,1778626134000,500.0,0.00041285,120]
[422153473,1778626135000,500.0,0.00041285,120]
[422153472,1778626135000,500.0,0.00041285,120]
[422153471,1778626135000,500.0,0.00041285,120]
[422153470,1778626135000,500.0,0.00041285,120]
[422153474,1778626136000,500.0,0.00041285,120]
[422153477,1778626136000,500.0,0.00041285,120]
[422153476,1778626136000,500.0,0.00041285,120]
[422153475,1778626136000,500.0,0.00041285,120]
[422153478,1778626137000,296.976,0.00041285,120]
[422153498,1778626232000,-5446.82,0.00016138,2]
[422153500,1778626232000,-297.86055726,0.00016255,2]
[422153502,1778626232000,-299.99,0.00016255,4]
[422153499,1778626232000,-2195.1,0.00016213,2]
[422153501,1778626232000,-9999.99,0.00016255,2]
[422153497,1778626232000,-1200.0,0.00016137,2]
[422153491,1778626232000,-166.66,0.0001538,2]
[422153492,1778626232000,-166.66,0.00015698,2]
[422153489,1778626232000,-166.66,0.00015063,2]
[422153494,1778626232000,-166.66,0.00016015,2]
[422153493,1778626232000,-4057.67,0.00015998,2]
[422153484,1778626232000,-159.77,0.0001151,2]
[422153488,1778626232000,-159.77,0.0001399,2]
[422153486,1778626232000,-250.0,0.00012661,2]
[422153496,1778626232000,-300.0,0.00016137,2]
[422153495,1778626232000,-215.11,0.00016062,2]
[422153485,1778626232000,-207.85262058,0.00012661,2]
[422153511,1778626232000,-208.2157166,0.0001663,2]
[422153490,1778626232000,-159.77,0.00015229,2]
[422153503,1778626232000,-325.0,0.00016311,2]
[422153487,1778626232000,-159.77,0.0001275,2]
[422153507,1778626232000,-159.77,0.00016469,2]
[422153509,1778626232000,-1392.56,0.00016594,2]
[422153530,1778626232000,-45336.71261655,0.00017148,2]
[422153527,1778626232000,-176.18370247,0.00017057,30]
[422153529,1778626232000,-176.18370246,0.00017073,30]
[422153526,1778626232000,-1000.0,0.00017049,2]
[422153528,1778626232000,-176.18370246,0.00017057,30]
[422153525,1778626232000,-55996.59006166,0.00017049,2]
[422153523,1778626232000,-10510.21780538,0.00017049,2]
[422153520,1778626232000,-483.52155026,0.00017039,2]
[422153524,1778626232000,-37558.91445551,0.00017049,2]
[422153522,1778626232000,-1678624.78737745,0.00017049,2]
[422153521,1778626232000,-204.50952383,0.00017048,2]
[422153518,1778626232000,-51910.45906682,0.0001699,2]
[422153516,1778626232000,-778.41,0.00016825,2]
[422153505,1778626232000,-166.66,0.00016332,2]
[422153517,1778626232000,-2599.2464381,0.00016956,2]
[422153515,1778626232000,-184.5,0.00016712,2]
[422153513,1778626232000,-166.66,0.00016649,2]
[422153504,1778626232000,-150.0,0.00016318,2]
[422153519,1778626232000,-1392.56,0.00017009,2]
[422153538,1778626238000,-167.48,0.00015593,2]
[422153539,1778626238000,-2393.1104227,0.00017148,2]
[422153547,1778626239000,-2500.0,0.00017149,2]
[422153540,1778626239000,-3594.15875311,0.00017148,2]
[422153541,1778626239000,-2149.54225841,0.00017148,2]
[422153542,1778626239000,-2050.45774159,0.00017148,2]
[422153546,1778626239000,-5000.0,0.00017149,2]
[422153544,1778626239000,-405.0,0.00017148,2]
[422153549,1778626239000,-188.48385953,0.00017229,2]
[422153543,1778626239000,-1444476.01820764,0.00017148,2]
[422153545,1778626239000,-1616.869,0.00017149,2]
[422153552,1778626239000,-500.0,0.00017248,2]
[422153550,1778626239000,-511.99656495,0.00017229,2]
[422153555,1778626239000,-489.32408866,0.00017729,2]
[422153554,1778626239000,-159.77,0.00017708,2]
[422153553,1778626239000,-1392.56,0.00017424,2]
[422153551,1778626239000,-787.53221972,0.00017247,2]
[422153557,1778626239000,-1392.56,0.00017839,2]
[422153556,1778626239000,-480.0,0.00017729,2]
[422153558,1778626239000,-353.08002194,0.00018254,2]
[422153548,1778626239000,-156.74,0.000172,2]
[422153562,1778626241000,-902.65302674,0.00018254,2]
[422153563,1778626241000,-136.82695132,0.00018254,2]
[422153564,1778626241000,-150.0,0.00018469,2]
[422153565,1778626241000,-291.20089662,0.00019221,2]
[422153567,1778626241000,-371.24600103,0.00019363,2]
[422153568,1778626241000,-200.0,0.0001944,2]
[422153570,1778626241000,-200.0,0.0001944,2]
[422153571,1778626241000,-1023.30489559,0.0001944,2]
[422153569,1778626241000,-500.0,0.0001944,2]
[422153566,1778626241000,-1708.79910338,0.00019221,2]
[422153576,1778626243000,-6947.72777551,0.0001944,2]
[422153577,1778626243000,-188.48385949,0.00019959,2]
[422153580,1778626243000,-235.0,0.0002,2]
[422153575,1778626243000,-290.0373289,0.0001944,2]
[422153578,1778626243000,-511.99656489,0.00019959,2]
[422153581,1778626243000,-400.0,0.0002,2]
[422153582,1778626243000,-190.0,0.0002,2]
[422153579,1778626243000,-500.0,0.00019959,2]
[422153584,1778626243000,-500.0,0.00020233,2]
[422153586,1778626243000,-4961.47,0.00020548,2]
[422153583,1778626243000,-1177.0,0.0002,2]
[422153587,1778626243000,-150.0,0.0002058,2]
[422153589,1778626243000,-150.0,0.0002058,2]
[422153590,1778626243000,-150.0,0.0002058,2]
[422153588,1778626243000,-150.0,0.0002058,2]
[422153585,1778626243000,-2599.24643804,0.00020519,2]
[422153626,1778626244000,-150.0,0.00024958,2]
[422153629,1778626244000,-150.0,0.00024958,2]
[422153633,1778626244000,-150.0,0.00024958,2]
[422153627,1778626244000,-150.0,0.00024958,2]
[422153625,1778626244000,-1269.0,0.00024958,2]
[422153618,1778626244000,-2599.24643804,0.00024083,2]
[422153620,1778626244000,-178.58,0.00024658,2]
[422153622,1778626244000,-152.35,0.00024658,2]
[422153628,1778626244000,-150.0,0.00024958,2]
[422153619,1778626244000,-1000.0,0.00024658,2]
[422153624,1778626244000,-150.0,0.00024958,2]
[422153632,1778626244000,-3629.0,0.00024958,2]
[422153630,1778626244000,-930.0,0.00024958,2]
[422153631,1778626244000,-150.0,0.00024958,2]
[422153621,1778626244000,-152.45,0.00024658,2]
[422153637,1778626244000,-2428.96,0.00024958,2]
[422153639,1778626244000,-238.5438603,0.00025,2]
[422153642,1778626244000,-407.0,0.00025,2]
[422153648,1778626244000,-511.99656489,0.00025419,2]
[422153652,1778626244000,-152.35,0.00025697,7]
[422153656,1778626244000,-167.48,0.00026689,2]
[422153646,1778626244000,-188.48385949,0.00025419,2]
[422153644,1778626244000,-195.12706642,0.00025,2]
[422153654,1778626244000,-489.3240886,0.00025786,2]
[422153658,1778626244000,-227.81,0.00026709,2]
[422153635,1778626244000,-150.0,0.00024958,2]
[422153616,1778626244000,-400.0,0.00024,2]
[422153617,1778626244000,-190.0,0.00024,2]
[422153623,1778626244000,-396.521,0.00024958,2]
[422153650,1778626244000,-152.45,0.00025697,7]
[422153591,1778626244000,-150.0,0.0002058,2]
[422153592,1778626244000,-184.51963963,0.0002058,2]
[422153593,1778626244000,-235.0,0.00021,2]
[422153594,1778626244000,-400.0,0.00021,2]
[422153596,1778626244000,-441.0,0.00021,2]
[422153595,1778626244000,-190.0,0.00021,2]
[422153597,1778626244000,-167.48,0.00021141,2]
[422153601,1778626244000,-500.0,0.00021817,2]
[422153600,1778626244000,-500.0,0.00021817,2]
[422153599,1778626244000,-500.0,0.00021817,2]
[422153598,1778626244000,-489.3240886,0.00021758,2]
[422153604,1778626244000,-5000.0,0.00021918,2]
[422153602,1778626244000,-500.0,0.00021817,2]
[422153606,1778626244000,-400.0,0.00022,2]
[422153612,1778626244000,-235.0,0.00023,2]
[422153605,1778626244000,-235.0,0.00022,2]
[422153610,1778626244000,-188.48385949,0.00022689,2]
[422153607,1778626244000,-190.0,0.00022,2]
[422153608,1778626244000,-905.25,0.00022466,2]